fUST/lending_fUST_20260622
["ID","MTS","AMOUNT","RATE_DAILY","PERIOD"]
[425989732,1782078640000,-287.96191861,0.00013233,14]
[425989729,1782078640000,-5000.0,0.00012129,2]
[425989731,1782078640000,-306.09,0.00013014,2]
[425989735,1782078640000,-240.494186,0.00013699,2]
[425989737,1782078640000,-39.60469252,0.00014334,2]
[425989736,1782078640000,-426.359214,0.00013699,2]
[425990402,1782078646000,-500.0,0.00014334,2]
[425990433,1782078646000,-2309.927773,0.00014434,2]
[425990431,1782078646000,-151.0,0.00014434,2]
[425990439,1782078646000,-2309.927773,0.00014434,2]
[425990441,1782078646000,-151.0,0.00014435,2]
[425990437,1782078646000,-2309.927773,0.00014434,2]
[425990452,1782078646000,-316.901975,0.00014435,2]
[425990435,1782078646000,-2309.927773,0.00014434,2]
[425990447,1782078646000,-316.901975,0.00014435,2]
[425990457,1782078646000,-316.901975,0.00014435,2]
[425990454,1782078646000,-316.901975,0.00014435,2]
[425990449,1782078646000,-316.901975,0.00014435,2]
[425990444,1782078646000,-316.901975,0.00014435,2]
[425990429,1782078646000,-2309.927773,0.00014335,2]
[425990427,1782078646000,-2309.927773,0.00014335,2]
[425990420,1782078646000,-2910.03830815,0.00014335,2]
[425990461,1782078646000,-316.901975,0.00014435,2]
[425990422,1782078646000,-151.0,0.00014335,2]
[425990404,1782078646000,-500.0,0.00014334,2]
[425990406,1782078646000,-616.92866392,0.00014334,2]
[425990408,1782078646000,-286.52109623,0.00014334,2]
[425990416,1782078646000,-500.0,0.00014334,2]
[425990418,1782078646000,-183.77000409,0.00014334,2]
[425990414,1782078646000,-484.57220778,0.00014334,2]
[425990410,1782078646000,-500.0,0.00014334,2]
[425990412,1782078646000,-500.0,0.00014334,2]
[425990400,1782078646000,-460.39530748,0.00014334,2]
[425990425,1782078646000,-2309.927773,0.00014335,2]
[425990450,1782078646000,-316.901975,0.00014435,2]
[425990424,1782078646000,-2309.927773,0.00014335,2]
[425990456,1782078646000,-316.901975,0.00014435,2]
[425990459,1782078646000,-316.901975,0.00014435,2]
[425990515,1782078646000,-151.0,0.00014435,2]
[425990513,1782078646000,-276.19604074,0.00014435,2]
[425990511,1782078646000,-151.0,0.00014435,2]
[425990509,1782078646000,-151.0,0.00014435,2]
[425990499,1782078646000,-151.0,0.00014435,2]
[425990505,1782078646000,-151.0,0.00014435,2]
[425990503,1782078646000,-151.0,0.00014435,2]
[425990501,1782078646000,-151.0,0.00014435,2]
[425990497,1782078646000,-151.0,0.00014435,2]
[425990495,1782078646000,-151.0,0.00014435,2]
[425990517,1782078646000,-2309.927773,0.00014435,2]
[425990494,1782078646000,-151.0,0.00014435,2]
[425990492,1782078646000,-151.0,0.00014435,2]
[425990507,1782078646000,-151.0,0.00014435,2]
[425990483,1782078646000,-151.0,0.00014435,2]
[425990463,1782078646000,-316.901975,0.00014435,2]
[425990487,1782078646000,-151.0,0.00014435,2]
[425990476,1782078646000,-316.901975,0.00014435,2]
[425990472,1782078646000,-316.901975,0.00014435,2]
[425990477,1782078646000,-316.901975,0.00014435,2]
[425990479,1782078646000,-316.901983,0.00014435,2]
[425990465,1782078646000,-316.901975,0.00014435,2]
[425990470,1782078646000,-316.901975,0.00014435,2]
[425990481,1782078646000,-151.0,0.00014435,2]
[425990468,1782078646000,-316.901975,0.00014435,2]
[425990474,1782078646000,-316.901975,0.00014435,2]
[425990485,1782078646000,-151.0,0.00014435,2]
[425990490,1782078646000,-151.0,0.00014435,2]
[425990467,1782078646000,-316.901975,0.00014435,2]
[425990560,1782078647000,-151.0,0.00014534,2]
[425990526,1782078647000,-2309.927773,0.00014435,2]
[425990552,1782078647000,-500.0,0.00014532,2]
[425990550,1782078647000,-500.0,0.00014532,2]
[425990535,1782078647000,-2309.927773,0.00014435,2]
[425990541,1782078647000,-301.16871441,0.00014435,2]
[425990533,1782078647000,-2309.927773,0.00014435,2]
[425990539,1782078647000,-500.0,0.00014435,2]
[425990519,1782078647000,-2309.927773,0.00014435,2]
[425990528,1782078647000,-2309.927773,0.00014435,2]
[425990532,1782078647000,-2309.927773,0.00014435,2]
[425990530,1782078647000,-2309.927773,0.00014435,2]
[425990521,1782078647000,-2309.927773,0.00014435,2]
[425990524,1782078647000,-2309.927773,0.00014435,2]
[425990522,1782078647000,-2309.927773,0.00014435,2]
[425990566,1782078647000,-151.0,0.00014534,2]
[425990537,1782078647000,-2309.92777,0.00014435,2]
[425990543,1782078647000,-151.0,0.00014443,2]
[425990585,1782078647000,-151.0,0.00014534,2]
[425990558,1782078647000,-151.0,0.00014534,2]
[425990587,1782078647000,-227.53627303,0.00014534,2]
[425990577,1782078647000,-151.0,0.00014534,2]
[425990591,1782078647000,-382.58960608,0.00014542,2]
[425990572,1782078647000,-151.0,0.00014534,2]
[425990574,1782078647000,-151.0,0.00014534,2]
[425990581,1782078647000,-151.0,0.00014534,2]
[425990562,1782078647000,-151.0,0.00014534,2]
[425990576,1782078647000,-151.0,0.00014534,2]
[425990579,1782078647000,-151.0,0.00014534,2]
[425990568,1782078647000,-151.0,0.00014534,2]
[425990589,1782078647000,-216.224659,0.00014535,2]
[425990570,1782078647000,-151.0,0.00014534,2]
[425990556,1782078647000,-151.0,0.00014533,2]
[425990554,1782078647000,-151.0,0.00014533,2]
[425990546,1782078647000,-251.67071547,0.00014531,2]
[425990564,1782078647000,-151.0,0.00014534,2]
[425990549,1782078647000,-79.57270721,0.00014531,2]
[425990583,1782078647000,-151.0,0.00014534,2]
[425990922,1782078753000,301.84825674,0.00022974,120]
[425991053,1782079833000,-222.54188993,0.00013124,2]
[425991055,1782079833000,-152.43572672,0.00013391,14]
[425991051,1782079833000,-1632.025996,0.00012863,2]
[425991062,1782079833000,-51.00361265,0.00014532,2]
[425991058,1782079833000,-500.0,0.00014532,2]
[425991059,1782079833000,-448.99638735,0.00014532,2]
[425991056,1782079833000,-500.0,0.00014532,2]
[425991049,1782079833000,-3367.974004,0.00012863,2]
[425991072,1782079833000,-500.0,0.00014542,2]
[425991085,1782079833000,-87.2984368,0.00014542,2]
[425991064,1782079833000,-500.0,0.00014532,2]
[425991074,1782079833000,-500.0,0.00014542,2]
[425991068,1782079833000,-432.81495021,0.00014534,2]
[425991076,1782079833000,-500.0,0.00014542,2]
[425991066,1782079833000,-307.35800034,0.00014534,2]
[425991070,1782079833000,-450.0,0.00014542,2]
[425991080,1782079833000,-500.0,0.00014542,2]
[425991082,1782079833000,-500.0,0.00014542,2]
[425991083,1782079833000,-500.0,0.00014542,2]
[425991078,1782079833000,-500.0,0.00014542,2]
[425991143,1782079838000,-156.0,0.00014551,2]
[425991158,1782079838000,-500.0,0.00016711,2]
[425991141,1782079838000,-166.0,0.00014551,2]
[425991137,1782079838000,-151.0,0.00014542,2]
[425991156,1782079838000,-254.848038,0.0001647,2]
[425991152,1782079838000,-500.0,0.00016438,2]
[425991135,1782079838000,-151.0,0.00014542,2]
[425991154,1782079838000,-500.0,0.00016438,2]
[425991145,1782079838000,-182.71,0.00014625,2]
[425991147,1782079838000,-327.0061742,0.00015513,2]
[425991160,1782079838000,-155.693706,0.00016712,2]
[425991133,1782079838000,-151.0,0.00014542,2]
[425991131,1782079838000,-234.67518894,0.00014542,2]
[425991150,1782079838000,-263.179607,0.00016174,2]
[425991171,1782079838000,-500.0,0.00016985,2]
[425991139,1782079838000,-166.0,0.00014551,2]
[425991166,1782079838000,-151.0,0.00016712,2]
[425991169,1782079838000,-500.0,0.00016712,2]
[425991183,1782079838000,-151.0,0.00017282,2]
[425991182,1782079838000,-500.0,0.0001728,2]
[425991180,1782079838000,-500.0,0.0001726,2]
[425991177,1782079838000,-500.0,0.00016986,2]
[425991174,1782079838000,-633.04341449,0.00016985,2]
[425991168,1782079838000,-151.0,0.00016712,2]
[425991178,1782079838000,-500.0,0.0001726,2]
[425991173,1782079838000,-217.50029529,0.00016985,2]
[425991162,1782079838000,-151.0,0.00016712,2]
[425991175,1782079838000,-150.92412837,0.00016986,2]
[425991164,1782079838000,-151.0,0.00016712,2]
[425991172,1782079838000,-175.96889964,0.00016985,2]
[425991170,1782079838000,-500.0,0.00016712,2]
[425991176,1782079838000,-500.0,0.00016986,2]
[425991213,1782079839000,-205.47104401,0.00018538,2]
[425991220,1782079839000,-500.0,0.0001863,2]
[425991205,1782079839000,-500.0,0.00018082,2]
[425991202,1782079839000,-151.0,0.00018082,2]
[425991200,1782079839000,-151.0,0.00018082,2]
[425991208,1782079839000,-201.20008551,0.00018347,7]
[425991207,1782079839000,-600.0,0.00018224,2]
[425991189,1782079839000,-305.45187827,0.0001739,2]
[425991198,1782079839000,-500.0,0.00017808,2]
[425991195,1782079839000,-500.0,0.00017534,2]
[425991185,1782079839000,-151.0,0.00017282,2]
[425991193,1782079839000,-400.0,0.00017534,2]
[425991196,1782079839000,-492.46663539,0.00017554,2]
[425991191,1782079839000,-186.0,0.00017394,2]
[425991211,1782079839000,-500.0,0.00018356,2]
[425991187,1782079839000,-263.179607,0.00017307,2]
[425991216,1782079839000,-152.44918106,0.00018538,2]
[425991242,1782079839000,-407.27515307,0.00019311,2]
[425991222,1782079839000,-299.822,0.00018853,2]
[425991256,1782079839000,-1503207.01921845,0.00019526,2]
[425991252,1782079839000,-521.6571076,0.00019496,2]
[425991248,1782079839000,-151.0,0.00019452,2]
[425991246,1782079839000,-151.0,0.00019452,2]
[425991254,1782079839000,-265510.31935394,0.00019526,2]
[425991236,1782079839000,-500.0,0.0001931,2]
[425991238,1782079839000,-410.94208803,0.00019311,2]
[425991240,1782079839000,-304.89836212,0.00019311,2]
[425991244,1782079839000,-202.61670936,0.00019314,2]
[425991232,1782079839000,-500.0,0.00019178,2]
[425991234,1782079839000,-160.0,0.00019181,3]
[425991224,1782079839000,-500.0,0.00018904,2]
[425991230,1782079839000,-153.779274,0.00019178,2]
[425991228,1782079839000,-151.0,0.00019178,2]
[425991226,1782079839000,-166.62521074,0.00018943,2]
[425991250,1782079839000,-500.0,0.00019452,2]
[425991218,1782079839000,-203.63757653,0.00018538,2]
[425991729,1782079846000,-455.82,0.00019526,2]
[425991728,1782079846000,-3393.08812251,0.00019526,2]
[425991839,1782080544000,194.0,0.0002109,120]
[425991847,1782080968000,2001.01,0.00023288,120]
[425991907,1782081032000,-186.518827,0.00016617,2]
[425991919,1782081032000,-445.0,0.00017346,2]
[425991915,1782081032000,-970.91547704,0.00016985,2]
[425991929,1782081032000,-176.67166205,0.00018614,2]
[425991913,1782081032000,-248.8105511,0.00016919,2]
[425991909,1782081032000,-238.5963139,0.00016885,2]
[425991925,1782081032000,-417.15472785,0.00017684,2]
[425991931,1782081032000,-175.19110069,0.00018614,2]
[425991905,1782081032000,-357.9773558,0.00016459,2]
[425991903,1782081032000,-390.37549501,0.00013892,7]
[425991901,1782081032000,-260.25033,0.0001312,7]
[425991899,1782081032000,-3205.45453678,0.00012989,2]
[425991918,1782081032000,-500.0,0.00016985,2]
[425991921,1782081032000,-186.0,0.00017346,2]
[425991923,1782081032000,-1418.0,0.00017346,2]
[425991927,1782081032000,-158.287802,0.00018516,2]
[425991957,1782081032000,-44380.47991256,0.00019226,2]
[425991943,1782081032000,-997.32222237,0.00019,2]
[425991951,1782081032000,-422.80275803,0.00019225,2]
[425991949,1782081032000,-365.62792535,0.00019225,2]
[425991935,1782081032000,-173.95,0.0001898,2]
[425991955,1782081032000,-22225.17356479,0.00019226,2]
[425991947,1782081032000,-273.41566567,0.00019135,2]
[425991953,1782081032000,-500.0,0.00019225,2]
[425991945,1782081032000,-2524.00752578,0.00019,2]
[425991933,1782081032000,-193.08544757,0.00018614,2]
[425991941,1782081032000,-1348.72822786,0.00019,2]
[425991937,1782081032000,-500.0,0.00018999,2]
[425991939,1782081032000,-1129.94202399,0.00019,2]
[425991911,1782081032000,-211.08175136,0.00016885,2]
[425992241,1782081041000,-205.06174925,0.00019135,2]
[425992243,1782081041000,-315980.34516452,0.00019226,2]
[425992244,1782081041000,-5410.76318742,0.00019226,2]
[425992245,1782081041000,-3214.65,0.00019226,2]
[425992242,1782081041000,-262528.82510341,0.00019226,2]
[425992240,1782081041000,-1842.0,0.00017346,2]
[425992268,1782081043000,-1930.04165381,0.00019226,2]
[425992288,1782081046000,-2505.83214073,0.00019226,2]
[425992290,1782081047000,-4590.01242646,0.00019226,2]
[425992289,1782081047000,-23299.77689758,0.00019226,2]
[425992291,1782081285000,3356.69117507,0.00022992,30]
[425992345,1782082232000,-166.707,0.00017289,2]
[425992342,1782082232000,-1839.0,0.00017289,2]
[425992346,1782082232000,-160.0,0.00017695,2]
[425992341,1782082232000,-958.0,0.00017289,2]
[425992344,1782082232000,-151.145,0.00017289,2]
[425992343,1782082232000,-445.0,0.00017289,2]
[425992339,1782082232000,-3064.9346386,0.00016808,2]
[425992337,1782082232000,-186.518827,0.00016725,2]
[425992335,1782082232000,-295.05,0.00015967,2]
[425992333,1782082232000,-11.0,0.00015967,2]
[425992328,1782082232000,-5000.0,0.00014316,2]
[425992347,1782082232000,-160.0,0.00017695,2]
[425992329,1782082232000,-319.21421136,0.00014461,2]
[425992331,1782082232000,-300.0,0.00014606,2]
[425992348,1782082232000,-163.51169397,0.00018614,2]
[425992349,1782082232000,-172.94192696,0.00018614,2]
[425992326,1782082232000,-5000.0,0.00014173,2]
[425992352,1782082232000,-158.287802,0.00018766,2]
[425992350,1782082232000,-189.75033529,0.00018614,2]
[425992382,1782082232000,-500.0,0.00018898,2]
[425992378,1782082232000,-500.0,0.00018898,2]
[425992376,1782082232000,-511.48050682,0.00018898,2]
[425992373,1782082232000,-500.0,0.00018898,2]
[425992371,1782082232000,-500.0,0.00018898,2]
[425992367,1782082232000,-500.0,0.00018898,2]
[425992380,1782082232000,-500.0,0.00018898,2]
[425992361,1782082232000,-505.44599689,0.00018897,2]
[425992369,1782082232000,-500.0,0.00018898,2]
[425992363,1782082232000,-500.0,0.00018898,2]
[425992357,1782082232000,-500.0,0.00018897,2]
[425992359,1782082232000,-500.0,0.00018897,2]
[425992355,1782082232000,-221.0180734,0.00018803,2]
[425992365,1782082232000,-504.39333408,0.00018898,2]
[425992353,1782082232000,-192.14212356,0.00018767,3]
[425992456,1782082233000,-500.0,0.00018998,2]
[425992454,1782082233000,-500.0,0.00018998,2]
[425992450,1782082233000,-500.0,0.00018998,2]
[425992452,1782082233000,-500.0,0.00018998,2]
[425992438,1782082233000,-445.0,0.00018998,2]
[425992435,1782082233000,-500.0,0.00018997,2]
[425992431,1782082233000,-500.0,0.00018997,2]
[425992448,1782082233000,-506.40105475,0.00018998,2]
[425992458,1782082233000,-352.8323378,0.00018998,2]
[425992433,1782082233000,-500.0,0.00018997,2]
[425992461,1782082233000,-500.0,0.00018998,2]
[425992474,1782082233000,-500.0,0.00018999,2]
[425992465,1782082233000,-500.0,0.00018998,2]
[425992464,1782082233000,-500.0,0.00018998,2]
[425992469,1782082233000,-500.0,0.00018998,2]
[425992467,1782082233000,-500.0,0.00018998,2]
[425992473,1782082233000,-1000.0,0.00018999,2]
[425992471,1782082233000,-500.0,0.00018998,2]
[425992444,1782082233000,-500.0,0.00018998,2]
[425992476,1782082233000,-500.0,0.00018999,2]
[425992475,1782082233000,-500.0,0.00018999,2]
[425992480,1782082233000,-500.0,0.00018999,2]
[425992482,1782082233000,-500.0,0.00018999,2]
[425992462,1782082233000,-500.0,0.00018998,2]
[425992446,1782082233000,-500.0,0.00018998,2]
[425992415,1782082233000,-500.0,0.00018997,2]
[425992440,1782082233000,-500.0,0.00018998,2]
[425992393,1782082233000,-500.0,0.00018996,2]
[425992395,1782082233000,-500.0,0.00018996,2]
[425992386,1782082233000,-500.0,0.00018996,2]
[425992486,1782082233000,-500.0,0.00018999,2]
[425992397,1782082233000,-500.91266203,0.00018996,2]
[425992389,1782082233000,-500.0,0.00018996,2]
[425992391,1782082233000,-1000.0,0.00018996,2]
[425992387,1782082233000,-500.0,0.00018996,2]
[425992384,1782082233000,-235.4880464,0.00018996,2]
[425992399,1782082233000,-500.0,0.00018996,2]
[425992401,1782082233000,-425.8586056,0.00018996,2]
[425992442,1782082233000,-354.39171766,0.00018998,2]
[425992403,1782082233000,-500.0,0.00018996,2]
[425992407,1782082233000,-500.0,0.00018997,2]
[425992409,1782082233000,-500.0,0.00018997,2]
[425992411,1782082233000,-500.0,0.00018997,2]
[425992417,1782082233000,-500.0,0.00018997,2]
[425992413,1782082233000,-500.0,0.00018997,2]
[425992419,1782082233000,-500.0,0.00018997,2]
[425992421,1782082233000,-239.858,0.00018997,2]
[425992423,1782082233000,-500.0,0.00018997,2]
[425992425,1782082233000,-500.0,0.00018997,2]
[425992428,1782082233000,-500.0,0.00018997,2]
[425992430,1782082233000,-500.0,0.00018997,2]
[425992405,1782082233000,-500.0,0.00018996,2]
[425992484,1782082233000,-500.0,0.00018999,2]
[425992607,1782082233000,-5725.3412866,0.00019016,2]
[425992488,1782082233000,-500.0,0.00018999,2]
[425992544,1782082233000,-500.0,0.00018999,2]
[425992548,1782082233000,-500.0,0.00018999,2]
[425992552,1782082233000,-393.93136339,0.00018999,2]
[425992550,1782082233000,-500.0,0.00018999,2]
[425992578,1782082233000,-507.74527,0.00018999,2]
[425992583,1782082233000,-255.93954774,0.00018999,2]
[425992585,1782082233000,-359.26729952,0.00018999,2]
[425992580,1782082233000,-500.0,0.00018999,2]
[425992568,1782082233000,-106.06863661,0.00018999,2]
[425992570,1782082233000,-503.1,0.00018999,2]
[425992572,1782082233000,-500.0,0.00018999,2]
[425992574,1782082233000,-500.0,0.00018999,2]
[425992576,1782082233000,-645.51,0.00018999,2]
[425992587,1782082233000,-151.0,0.00019,2]
[425992590,1782082233000,-151.0,0.00019,2]
[425992592,1782082233000,-1083.65,0.00019006,3]
[425992594,1782082233000,-541.82,0.00019006,3]
[425992596,1782082233000,-270.91,0.00019006,3]
[425992600,1782082233000,-8752.04910412,0.00019016,2]
[425992598,1782082233000,-812.76,0.00019006,3]
[425992603,1782082233000,-3338.4711255,0.00019016,2]
[425992605,1782082233000,-5907.0,0.00019016,2]
[425992609,1782082233000,-1302.37594894,0.00019016,2]
[425992542,1782082233000,-500.0,0.00018999,2]
[425992546,1782082233000,-500.0,0.00018999,2]
[425992478,1782082233000,-500.0,0.00018999,2]
[425992536,1782082233000,-500.0,0.00018999,2]
[425992538,1782082233000,-500.0,0.00018999,2]
[425992491,1782082233000,-500.0,0.00018999,2]
[425992489,1782082233000,-500.0,0.00018999,2]
[425992495,1782082233000,-500.0,0.00018999,2]
[425992493,1782082233000,-500.0,0.00018999,2]
[425992497,1782082233000,-580.24,0.00018999,2]
[425992499,1782082233000,-500.0,0.00018999,2]
[425992501,1782082233000,-500.0,0.00018999,2]
[425992514,1782082233000,-500.0,0.00018999,2]
[425992503,1782082233000,-500.0,0.00018999,2]
[425992516,1782082233000,-500.0,0.00018999,2]
[425992505,1782082233000,-500.0,0.00018999,2]
[425992518,1782082233000,-500.0,0.00018999,2]
[425992509,1782082233000,-1128.56,0.00018999,2]
[425992507,1782082233000,-500.0,0.00018999,2]
[425992520,1782082233000,-500.0,0.00018999,2]
[425992522,1782082233000,-500.0,0.00018999,2]
[425992526,1782082233000,-500.0,0.00018999,2]
[425992524,1782082233000,-500.0,0.00018999,2]
[425992530,1782082233000,-500.0,0.00018999,2]
[425992528,1782082233000,-500.0,0.00018999,2]
[425992532,1782082233000,-500.0,0.00018999,2]
[425992535,1782082233000,-500.0,0.00018999,2]
[425992540,1782082233000,-500.0,0.00018999,2]
[425992512,1782082233000,-500.0,0.00018999,2]
[425992615,1782082234000,-1114.51852297,0.00019016,2]
[425992702,1782082239000,-2811.91327792,0.00018896,2]
[425992701,1782082239000,-878.80552819,0.00018896,2]
[425992703,1782082239000,-29648.98024837,0.00019016,2]
[425992704,1782082239000,-2696.0,0.00019016,2]
[425992705,1782082239000,-482.6802026,0.00019016,2]
[425992774,1782082241000,-4598.9469206,0.00019016,2]
[425992772,1782082241000,-2251.014864,0.00019016,2]
[425992768,1782082241000,-974.73856006,0.00019016,2]
[425992767,1782082241000,-1521.4232988,0.00019016,2]
[425992964,1782082244000,-19988.74023388,0.00019016,2]
[425992963,1782082244000,-227.34058405,0.00018999,2]
[425992976,1782082247000,-3200.00000001,0.00019016,2]
[425992975,1782082247000,-540.56163886,0.00019016,2]
[425992973,1782082247000,-446.36,0.00018897,2]
[425992974,1782082247000,-3247.20357806,0.00019016,2]
[425992972,1782082247000,-1173.50659867,0.00018809,2]
[425992971,1782082247000,-3826.49340133,0.00018809,2]
[425992995,1782083431000,-370.09191692,0.00013703,2]
[425992992,1782083431000,-4629.90808308,0.00013703,2]
[425992999,1782083431000,-795.04926471,0.00015,2]
[425992997,1782083431000,-2617.07948091,0.00013841,2]
[425993139,1782083438000,-493.99615222,0.00018498,2]
[425993135,1782083438000,-2079.14321734,0.00015,2]
[425993136,1782083438000,-186.0,0.00017289,2]
[425993138,1782083438000,-235.86986401,0.00018498,2]
[425993137,1782083438000,-160.0,0.00017675,2]
[425993151,1782083438000,-500.0,0.00018498,2]
[425993150,1782083438000,-500.0,0.00018498,2]
[425993141,1782083438000,-500.0,0.00018498,2]
[425993145,1782083438000,-500.0,0.00018498,2]
[425993140,1782083438000,-500.0,0.00018498,2]
[425993142,1782083438000,-500.0,0.00018498,2]
[425993148,1782083438000,-500.0,0.00018498,2]
[425993144,1782083438000,-500.0,0.00018498,2]
[425993147,1782083438000,-500.0,0.00018498,2]
[425993146,1782083438000,-500.0,0.00018498,2]
[425993143,1782083438000,-500.0,0.00018498,2]
[425993149,1782083438000,-500.0,0.00018498,2]
[425993153,1782083438000,-500.0,0.00018498,2]
[425993152,1782083438000,-306.52006345,0.00018498,2]
[425993154,1782083438000,-59492.35426879,0.00018499,2]
[425993155,1782083438000,-9517.94150334,0.00018499,2]
[425993173,1782083443000,-1412.16981293,0.00018499,2]
[425993176,1782083446000,-4693.72026097,0.00018499,2]
[425993175,1782083446000,-554.05762207,0.00018499,2]
[425993174,1782083446000,-303.0,0.00018499,2]
[425993222,1782084633000,-288.19986417,0.00015103,2]
[425993224,1782084633000,-637.63281249,0.00015103,2]
[425993226,1782084633000,-11.80013583,0.00015103,2]
[425993228,1782084633000,-288.19986417,0.00015256,2]
[425993266,1782084638000,-3590.448674,0.00016866,2]
[425993262,1782084638000,-640.90720039,0.00015489,2]
[425993264,1782084638000,-186.518827,0.00016737,2]
[425993268,1782084638000,-186.0,0.00017139,2]
[425993269,1782084638000,-445.0,0.00017139,2]
[425993258,1782084638000,-646.91164977,0.00015466,2]
[425993273,1782084638000,-1066.8531834,0.00017539,2]
[425993271,1782084638000,-295.9466673,0.00017155,2]
[425993260,1782084638000,-410.59119945,0.00015489,2]
[425993275,1782084638000,-4270.60643888,0.00018089,2]
[425993286,1782084638000,-500.0,0.00018098,2]
[425993296,1782084638000,-416.08,0.00018098,2]
[425993290,1782084638000,-642.48641319,0.00018098,2]
[425993277,1782084638000,-165.10890481,0.00018098,2]
[425993256,1782084638000,-4711.80013583,0.00015256,2]
[425993288,1782084638000,-500.0,0.00018098,2]
[425993292,1782084638000,-500.0,0.00018098,2]
[425993306,1782084638000,-158.03,0.00018189,3]
[425993310,1782084638000,-500.0,0.00018196,2]
[425993308,1782084638000,-474.13,0.00018189,3]
[425993312,1782084638000,-364024.12109332,0.00018199,2]
[425993304,1782084638000,-316.06,0.00018189,3]
[425993302,1782084638000,-632.12,0.00018189,3]
[425993282,1782084638000,-500.0,0.00018098,2]
[425993294,1782084638000,-500.0,0.00018098,2]
[425993279,1782084638000,-423.32487148,0.00018098,2]
[425993300,1782084638000,-266823.38456332,0.00018099,2]
[425993284,1782084638000,-617.58401974,0.00018098,2]
[425993298,1782084638000,-93524.40165277,0.00018099,2]
[425993281,1782084638000,-500.0,0.00018098,2]
[425993575,1782084640000,-1294.80407779,0.00018199,2]
[425993808,1782084643000,-4810.20075139,0.00018199,2]
[425993806,1782084643000,-1204.86378702,0.00018199,2]
[425993885,1782084646000,-12146.49035461,0.00018199,2]
[425993880,1782084646000,-3631.51345087,0.00018199,2]
[425993930,1782085833000,-316.755,0.00016789,2]
[425993932,1782085833000,-405.93531867,0.00016789,2]
[425993938,1782085833000,-4277.30968133,0.00016789,2]
[425993940,1782085833000,-162.37412746,0.00016959,7]
[425993948,1782085833000,-352.24790813,0.00016959,2]
[425993946,1782085833000,-82.32936388,0.00016959,2]
[425993942,1782085833000,-1081.47953313,0.00016959,2]
[425993944,1782085833000,-254.19110299,0.00016959,2]
[425994032,1782085838000,-500.0,0.00017698,2]
[425994026,1782085838000,-1488.75209187,0.00016959,2]
[425994028,1782085838000,-167.17943007,0.00017689,2]
[425994030,1782085838000,-412.6861273,0.00017698,2]
[425994027,1782085838000,-958.0,0.00016959,2]
[425994031,1782085838000,-500.0,0.00017698,2]
[425994029,1782085838000,-174.46221912,0.00017698,2]
[425994034,1782085838000,-220.06,0.00017698,2]
[425994035,1782085838000,-139394.73187976,0.00017699,2]
[425994033,1782085838000,-537.46923622,0.00017698,2]
[425994040,1782085838000,-1897.99622341,0.00017699,2]
[425994038,1782085838000,-2219.85046615,0.00017699,2]
[425994037,1782085838000,-145253.00880477,0.00017699,2]
[425994039,1782085838000,-642.55,0.00017699,2]
[425994036,1782085838000,-1092.5771624,0.00017699,2]
[425994123,1782085840000,-2289.03558696,0.00017699,2]
[425994122,1782085840000,-892.23815474,0.00017699,2]
[425994115,1782085840000,-1579.2,0.00017699,2]
[425994124,1782085841000,-2604.88942571,0.00017699,2]
[425994317,1782085843000,-4618.65454512,0.00017699,2]
[425994318,1782085843000,-1115.78353468,0.00017699,2]
[425994319,1782085843000,-460.0,0.00017699,2]
[425994326,1782085846000,-12155.73467673,0.00017699,2]
[425994324,1782085846000,-5000.0,0.00017522,2]
[425994325,1782085846000,-58499.99999998,0.00017699,2]
[425994339,1782086472000,-152.49209071,0.000132,2]